bitfinex-derivatives/quotes_ETHF0:USTF0_20250726
["timestamp","ask_amount","ask_price","bid_price","bid_amount"]
[1753562112882,1.5549,3745.6,3745.5,5.45602]
[1753562113078,1.9584,3745.9,3745.8,1.95708]
[1753562113278,1.9584,3745.9,3745.8,1.46738]
[1753562113874,1.9584,3745.9,3745.8,1.01118]
[1753562114080,1.0466,3745.8,3745.5,3.2078]
[1753562114280,1.7584,3745.6,3745.5,3.74162]
[1753562114577,1.7584,3745.6,3745.5,5.16492]
[1753562114782,1.2498,3745.6,3745.5,5.45602]
[1753562115386,1.7584,3745.6,3745.5,5.45602]
[1753562119395,1.7584,3745.6,3745.5,5.16492]
[1753562120485,1.7584,3745.6,3745.5,0.53382]
[1753562120687,1.7584,3745.1,3745.0,4.1414]
[1753562120893,1.7584,3745.1,3745.0,5.16499]
[1753562121088,1.7584,3745.1,3745.0,5.45609]
[1753562128003,1.7584,3745.1,3745.0,5.16499]
[1753562128801,1.7584,3745.1,3745.0,5.47799]
[1753562131805,1.7584,3745.1,3745.0,5.16499]
[1753562134905,1.7584,3745.1,3745.0,5.47799]
[1753562136011,1.2498,3745.1,3745.0,5.47799]
[1753562136205,0.8053,3745.1,3745.0,5.47799]
[1753562139114,0.4965,3745.1,3745.0,5.47799]
[1753562140615,0.9419,3745.1,3745.0,5.47799]
[1753562142916,0.9808,3745.6,3745.5,0.4905]
[1753562143119,0.9808,3745.6,3745.5,5.50372]
[1753562144916,1.4262,3745.6,3745.5,5.50372]
[1753562145118,1.7184,3745.6,3745.5,5.50372]
[1753562151118,0.2,3745.9,3745.5,5.50372]
[1753562151119,1.9184,3745.9,3745.8,0.53378]
[1753562151423,1.9184,3745.9,3745.8,2.29588]
[1753562152625,1.1231,3745.9,3745.8,2.29588]
[1753562152816,0.2,3745.9,3745.8,2.29588]
[1753562153221,0.9231,3746.2,3746.1,1.21573]
[1753562153416,1.1297,3746.8,3746.7,1.3038]
[1753562153620,1.1297,3746.8,3746.7,26.79955]
[1753562153621,0.7953,3746.8,3746.7,26.79955]
[1753562153818,1.4796,3746.8,3746.7,0.53365]
[1753562154319,1.4796,3746.8,3746.7,3.74145]
[1753562154715,1.4796,3746.8,3746.7,0.53365]
[1753562155018,1.4796,3746.8,3746.7,3.74145]
[1753562155415,1.4796,3746.8,3746.7,0.53365]
[1753562155618,1.4796,3746.8,3746.6,21.82965]
[1753562155820,0.6843,3746.8,3746.7,0.53365]
[1753562156414,1.7184,3746.8,3746.7,0.53365]
[1753562158428,1.7184,3746.8,3746.7,1.14005]
[1753562158622,1.7184,3746.8,3746.7,1.57295]
[1753562158830,1.7184,3746.8,3746.7,5.47945]
[1753562160125,1.7184,3746.8,3746.7,5.04655]
[1753562161429,1.7184,3746.8,3746.7,5.47945]
[1753562163722,1.7184,3746.8,3746.7,26.77045]
[1753562164030,1.7184,3746.8,3746.7,22.12135]
[1753562164927,1.7184,3746.8,3746.7,22.43105]
[1753562165334,1.7184,3746.8,3746.7,22.86395]
[1753562165826,1.7184,3746.8,3746.7,23.05905]
[1753562166327,1.7184,3746.8,3746.7,23.56265]
[1753562167434,1.7184,3746.8,3746.7,0.53365]
[1753562167633,1.7184,3746.8,3746.7,21.82365]
[1753562169327,6.7184,3746.8,3746.7,0.53365]
[1753562169626,1.7184,3746.8,3746.7,0.53365]
[1753562171140,1.7184,3746.8,3746.7,0.83035]
[1753562171337,1.7184,3746.8,3746.7,1.14005]
[1753562171834,1.7184,3746.8,3746.7,1.33515]
[1753562172043,1.7184,3746.8,3746.7,2.27165]
[1753562173233,1.7184,3746.8,3746.7,1.83875]
[1753562173432,0.6356,3746.8,3746.7,2.27165]
[1753562173938,1.4202,3747.0,3746.9,1.03232]
[1753562174143,1.4202,3747.0,3746.9,2.27162]
[1753562174438,1.1347,3747.0,3746.9,2.27162]
[1753562174644,1.4382,3747.3,3747.2,2.27158]
[1753562174944,0.018,3747.3,3747.2,2.27158]
[1753562176749,0.4663,3747.3,3747.2,2.27158]
[1753562176949,0.6636,3747.3,3747.2,2.27158]
[1753562177146,0.9491,3747.3,3747.2,2.27158]
[1753562177546,0.6636,3747.3,3747.2,2.27158]
[1753562177942,1.4382,3747.3,3747.2,2.27158]
[1753562178949,1.7458,3747.3,3747.2,2.27158]
[1753562180652,0.6636,3747.3,3747.2,2.27158]
[1753562181851,0.9491,3747.3,3747.2,2.27158]
[1753562184055,0.018,3747.3,3747.2,2.27158]
[1753562184458,0.4663,3747.3,3747.2,2.27158]
[1753562184657,0.6636,3747.3,3747.2,2.27158]
[1753562184955,0.9491,3747.3,3747.2,2.27158]
[1753562185160,1.4382,3747.3,3747.2,2.27158]
[1753562186051,1.7458,3747.3,3747.2,2.27158]
[1753562188254,1.4382,3747.3,3747.2,2.27158]
[1753562188457,0.6636,3747.3,3747.2,2.27158]
[1753562188657,0.018,3747.3,3747.2,2.27158]
[1753562189258,0.4565,3747.3,3747.2,2.27158]
[1753562189455,1.7374,3747.3,3747.2,1.738]
[1753562190254,1.7374,3747.3,3747.2,2.27158]
[1753562190454,1.7374,3747.3,3747.2,1.56678]
[1753562190655,1.1391,3747.0,3746.9,0.53361]
[1753562190853,1.7194,3747.0,3746.9,0.82061]
[1753562191054,1.7194,3747.0,3746.9,1.11211]
[1753562191359,1.7194,3747.0,3746.9,1.55431]
[1753562191554,1.7194,3747.0,3746.9,1.75851]
[1753562192961,1.7194,3747.0,3746.9,2.26141]
[1753562194557,1.7194,3747.0,3746.7,0.2915]
[1753562194760,0.7006,3746.5,3746.4,0.82068]
[1753562194958,1.7194,3746.5,3746.4,0.82068]
[1753562195156,1.7194,3746.5,3746.4,2.26148]
[1753562197759,1.7194,3746.5,3746.1,3.2078]
[1753562197760,0.7006,3746.5,3746.2,0.2915]
[1753562197961,1.7194,3745.8,3745.7,4.44869]
[1753562198361,1.7194,3745.8,3745.7,5.46939]
[1753562198562,1.4286,3745.8,3745.7,5.46939]
[1753562199057,1.1391,3745.8,3745.7,5.46939]
[1753562200963,1.4286,3745.8,3745.7,5.46939]
[1753562203273,1.4286,3745.8,3745.7,4.9356]
[1753562203868,1.4286,3745.8,3745.7,5.46939]
[1753562204665,1.7194,3745.8,3745.7,4.9356]
[1753562204865,1.7194,3745.8,3745.7,5.46939]
[1753562205969,1.7194,3745.8,3745.7,4.9356]
[1753562206374,1.7194,3745.8,3745.7,5.46939]
[1753562210073,1.7194,3745.8,3745.7,2.26159]
[1753562216879,1.7194,3745.8,3745.7,0.53379]
[1753562217276,1.7194,3745.8,3745.7,1.12569]
[1753562217478,1.7194,3745.8,3745.7,2.26729]
[1753562231794,1.207,3746.1,3746.0,0.92085]
[1753562232099,0.9162,3746.1,3746.0,2.26725]
[1753562232499,1.3987,3746.1,3746.0,2.26725]
[1753562232700,1.6894,3746.1,3746.0,2.26725]
[1753562233801,1.6894,3746.1,3746.0,0.84105]
[1753562233998,1.6894,3746.1,3746.0,0.53375]
[1753562234695,1.6894,3746.1,3746.0,0.84105]
[1753562235096,1.6894,3746.1,3746.0,1.12565]
[1753562237606,1.6894,3746.1,3746.0,1.78325]
[1753562237808,1.6894,3746.1,3746.0,2.26725]
[1753562238303,1.6894,3746.1,3746.0,0.84105]
[1753562238704,1.6894,3746.1,3746.0,1.12565]
[1753562238899,1.6894,3746.1,3746.0,1.80205]
[1753562239105,1.3987,3746.1,3746.0,2.26725]
[1753562239501,1.6894,3746.1,3746.0,1.12565]
[1753562239699,1.6894,3746.1,3746.0,1.78325]
[1753562240204,1.6894,3746.1,3746.0,2.26725]
[1753562243006,2.22313,3746.1,3746.0,1.7335]
[1753562243702,1.6894,3746.1,3746.0,2.26725]
[1753562244002,2.22313,3746.1,3746.0,2.26725]
[1753562245005,1.6894,3746.1,3746.0,2.26725]
[1753562246906,2.22313,3746.1,3746.0,2.26725]
[1753562253214,2.22313,3746.1,3746.0,1.7335]
[1753562253814,2.22313,3746.1,3746.0,2.26725]
[1753562255416,1.6894,3746.1,3746.0,2.26725]
[1753562256412,2.22313,3746.1,3746.0,2.26725]
[1753562256813,1.6894,3746.1,3746.0,2.26725]
[1753562257518,2.22313,3746.1,3746.0,2.26725]
[1753562257719,1.6894,3746.1,3746.0,2.26725]
[1753562257914,2.22313,3746.1,3746.0,2.26725]
[1753562258116,3.7415,3746.3,3746.2,1.116]
[1753562258414,5.10834299,3746.3,3746.2,1.7271]
[1753562258619,5.40984299,3746.3,3746.2,1.7271]
[1753562258812,6.19174299,3746.3,3746.2,1.7271]
[1753562259620,6.19174299,3746.3,3746.2,2.26082]
[1753562259815,6.19174299,3746.3,3746.2,1.7271]
[1753562260319,6.19174299,3746.3,3746.2,2.26082]
[1753562263921,5.65804299,3746.3,3746.2,2.26082]
[1753562265223,6.19174299,3746.3,3746.2,2.26082]
[1753562265925,5.65804299,3746.3,3746.2,2.26082]
[1753562266525,4.9311,3746.3,3746.2,2.26082]
[1753562266723,5.4648,3746.3,3746.2,2.26082]
[1753562267221,4.9311,3746.3,3746.2,2.26082]
[1753562267719,5.4648,3746.3,3746.2,1.7271]
[1753562268317,4.9311,3746.3,3746.2,2.26082]
[1753562268621,5.4648,3746.3,3746.2,1.7271]
[1753562268822,5.4648,3746.3,3746.2,2.26082]
[1753562269126,6.19233172,3746.3,3746.2,1.7271]
[1753562269920,5.4648,3746.3,3746.2,1.7271]
[1753562270126,5.4648,3746.3,3746.2,2.26082]
[1753562270425,2.257,3746.3,3746.2,2.26082]
[1753562270725,4.9311,3746.3,3746.2,2.26082]
[1753562271025,1.7233,3746.3,3746.2,2.26082]
[1753562271224,4.9311,3746.3,3746.2,2.26082]
[1753562272224,5.4648,3746.3,3746.2,2.26082]
[1753562273125,4.9311,3746.3,3746.2,2.26082]
[1753562274626,5.4648,3746.3,3746.2,2.26082]
[1753562274826,4.9311,3746.3,3746.2,2.26082]
[1753562279525,4.9311,3746.3,3746.2,1.7271]
[1753562279726,5.4648,3746.3,3746.2,1.7271]
[1753562281331,4.9311,3746.3,3746.2,2.26082]
[1753562282430,3.3238,3746.8,3746.7,2.27015]
[1753562282632,0.7273628,3746.8,3746.7,2.27015]
[1753562282928,0.018,3747.3,3747.2,1.95808]
[1753562283128,0.018,3747.3,3747.2,2.27008]
[1753562283329,3.2078,3747.7,3747.6,0.53352]
[1753562283532,3.2078,3747.7,3747.6,2.27002]
[1753562283832,0.2,3747.9,3747.8,2.26999]
[1753562294943,0.6691,3747.9,3747.8,2.26999]
[1753562295337,0.9756,3747.9,3747.8,2.26999]
[1753562301050,1.177,3747.9,3747.8,2.26999]
[1753562301750,1.4788,3747.9,3747.8,2.26999]
[1753562304152,1.177,3747.9,3747.8,2.26999]
[1753562304548,1.6692,3747.9,3747.8,2.26999]
[1753562306457,1.9537,3747.9,3747.8,0.6117]
[1753562306755,1.7537,3747.7,3747.6,1.57851]
[1753562306954,1.7537,3747.7,3747.6,1.97401]
[1753562307352,1.7537,3747.7,3747.6,2.27001]
[1753562311155,1.4692,3747.7,3747.6,2.27001]
[1753562311748,0.2,3747.9,3747.8,2.31229]
[1753562312358,0.2,3747.9,3747.8,5.52009]
[1753562315759,0.6453,3747.9,3747.8,5.52009]
[1753562315955,0.6453,3747.9,3747.8,2.31229]
[1753562317951,0.2,3747.9,3747.8,2.31229]
[1753562322963,0.6453,3747.9,3747.8,2.31229]
[1753562323159,0.9595,3747.9,3747.8,2.31229]
[1753562323564,0.9595,3747.9,3747.8,5.52009]
[1753562323864,1.4486,3747.9,3747.8,5.52009]
[1753562324662,1.1504,3747.9,3747.8,5.52009]
[1753562325065,0.2,3747.9,3747.8,5.52009]
[1753562330876,0.6453,3747.9,3747.8,5.52009]
[1753562334376,0.2,3747.9,3747.8,5.52009]
[1753562335983,0.6453,3747.9,3747.8,5.52009]
[1753562336780,0.4453,3748.2,3748.1,0.53345]
[1753562336979,0.4453,3748.2,3747.8,4.73743]
[1753562336980,0.4453,3748.4,3748.3,1.469]
[1753562337183,0.4453,3748.4,3748.3,4.9866]
[1753562337578,1.2172,3748.6,3748.5,0.84519]
[1753562337780,0.919,3748.6,3748.5,2.28969]
[1753562338083,0.7281,3748.6,3748.5,2.28969]
[1753562339284,0.7281,3748.6,3748.3,3.2078]
[1753562339285,1.2255,3748.8,3748.7,2.28966]
[1753562339480,1.2255,3748.8,3748.7,5.49746]
[1753562340985,1.4313,3748.8,3748.7,5.49746]
[1753562341681,0.9241,3748.8,3748.7,5.49746]
[1753562341883,0.7281,3748.8,3748.7,5.49746]
[1753562344691,0.2,3749.9,3749.5,0.53324]
[1753562344692,1.7446,3749.6,3749.5,0.53324]
[1753562344891,2.46716874,3749.6,3749.5,0.53324]
[1753562345890,2.46716874,3749.6,3749.5,1.12784]
[1753562346292,2.46716874,3749.6,3749.5,2.28954]
[1753562346490,1.7446,3749.6,3749.5,2.28954]
[1753562347292,0.7281,3749.6,3749.5,2.28954]
[1753562347494,0.2866,3749.6,3749.5,2.28954]
[1753562347693,0.7281,3749.6,3749.5,2.28954]
[1753562347991,0.9241,3749.6,3749.5,2.28954]
[1753562348187,0.5133,3749.9,3749.8,2.28951]
[1753562348188,1.9446,3749.9,3749.8,2.28951]
[1753562348387,1.3299,3749.9,3749.8,2.28951]
[1753562348588,1.6313,3749.9,3749.8,2.28951]
[1753562348788,1.9446,3749.9,3749.8,2.28951]
[1753562355493,1.9446,3749.9,3749.8,0.53321]
[1753562355698,1.9446,3749.9,3749.8,1.32231]
[1753562355895,1.9446,3749.9,3749.8,2.28951]
[1753562356296,1.9446,3749.9,3749.8,0.53321]
[1753562356993,0.196,3749.4,3749.3,0.3111]
[1753562357198,1.7446,3749.4,3749.3,1.97778]
[1753562357498,1.7446,3749.4,3749.3,2.28958]
[1753562357902,1.1299,3749.7,3749.6,2.28953]
[1753562358201,0.9241,3749.7,3749.6,2.28953]
[1753562358401,0.7281,3749.7,3749.6,2.28953]
[1753562359699,0.2866,3749.7,3749.6,2.28953]
[1753562360703,1.4313,3749.7,3749.6,2.28953]
[1753562362102,1.4313,3749.7,3749.6,5.49733]
[1753562365209,1.4313,3749.7,3749.6,2.28953]
[1753562365412,1.4313,3749.7,3749.6,5.49733]
[1753562367310,1.4313,3749.7,3749.6,2.28953]
[1753562367512,1.4313,3749.7,3749.6,5.49733]
[1753562368814,0.9241,3749.7,3749.6,5.49733]
[1753562369410,0.2866,3749.7,3749.6,5.49733]
[1753562369910,0.7246,3749.7,3749.6,5.49733]
[1753562371102,0.94710659,3749.9,3749.8,2.27931]
[1753562371312,0.50910659,3749.9,3749.8,2.27931]
[1753562372108,0.20610659,3749.9,3749.8,2.27931]
[1753562372900,0.64410659,3749.9,3749.8,2.27931]
[1753562373107,0.94710659,3749.9,3749.8,2.27931]
[1753562373711,1.65840659,3749.9,3749.8,2.27931]
[1753562373910,1.96010659,3749.9,3749.8,2.27931]
[1753562374513,0.20610659,3749.9,3749.8,2.27931]
[1753562374708,1.44950659,3749.9,3749.8,2.27931]
[1753562374909,1.65840659,3749.9,3749.8,2.27931]
[1753562375412,1.96010659,3749.9,3749.8,2.27931]
[1753562376808,1.96010659,3749.9,3749.8,0.53321]
[1753562377910,1.4523,3749.4,3749.3,1.4538]
[1753562378307,1.4523,3749.4,3749.3,1.7461]
[1753562379003,1.4523,3749.4,3749.3,2.27938]
[1753562379310,1.754,3749.4,3749.3,2.27938]
[1753562386816,1.754,3749.4,3749.2,3.2078]
[1753562386817,1.0143,3749.4,3749.2,3.2078]
[1753562387015,1.754,3749.3,3749.0,0.53332]
[1753562387211,0.3012,3749.0,3748.9,0.53333]
[1753562387520,1.754,3749.0,3748.9,0.53333]
[1753562387821,0.7131,3748.6,3748.5,0.53339]
[1753562388011,0.7131,3748.6,3748.4,3.35674686]
[1753562388211,0.7131,3748.6,3748.1,0.5869]
[1753562388412,0.53336,3748.8,3748.3,0.53341]
[1753562388612,1.754,3748.4,3748.3,0.82801]
[1753562388814,1.754,3748.4,3748.3,1.82971]
[1753562389114,1.4528,3748.7,3748.6,1.24278]
[1753562389315,1.4523,3748.7,3748.6,2.27948]
[1753562389818,1.1511,3748.7,3748.6,2.27948]
[1753562390019,0.9422,3748.7,3748.6,2.27948]
[1753562392015,1.2434,3748.7,3748.6,2.27948]
[1753562393218,0.9422,3748.7,3748.6,2.27948]
[1753562395720,0.303,3748.7,3748.6,2.27948]
[1753562395921,1.2434,3748.9,3748.8,1.24275]
[1753562396224,0.9422,3749.1,3749.0,2.27942]
[1753562396622,1.4523,3749.1,3749.0,2.27942]
[1753562397024,1.754,3749.1,3749.0,2.27942]
[1753562398826,1.4523,3749.1,3749.0,2.27942]
[1753562400121,0.9422,3749.1,3749.0,2.27942]
[1753562400321,0.741,3749.1,3749.0,2.27942]
[1753562401729,0.741,3749.1,3749.0,5.48722]
[1753562401929,0.9493,3749.1,3749.0,5.48722]
[1753562402227,1.2505,3749.1,3749.0,5.48722]
[1753562402620,1.4423,3749.1,3749.0,5.48722]
[1753562403327,1.7418,3749.1,3749.0,5.48722]
[1753562403524,1.7418,3749.1,3749.0,3.74112]
[1753562403732,1.7418,3749.1,3749.0,0.53332]
[1753562403927,1.7322,3749.0,3748.9,0.53333]
[1753562404336,0.6893,3749.0,3748.8,0.53334]
[1753562404626,1.7322,3748.6,3748.5,0.53339]
[1753562405026,1.7322,3748.6,3748.5,1.82809]
[1753562405327,1.7322,3748.6,3748.5,2.28229]
[1753562405532,1.7322,3749.3,3749.2,0.53329]
[1753562405731,1.7322,3749.3,3749.2,1.13259]
[1753562405929,1.7322,3749.3,3749.2,1.32809]
[1753562407327,1.7322,3749.3,3749.2,2.28219]
[1753562407723,1.4327,3749.3,3749.2,2.28219]
[1753562408729,0.3012,3749.8,3749.7,0.53322]
[1753562409032,1.7322,3749.8,3749.7,2.28212]
[1753562419640,1.7322,3749.8,3749.7,0.53322]
[1753562420632,1.7322,3749.8,3749.7,0.84712]
[1753562422228,1.7322,3749.8,3749.7,0.53322]
[1753562422429,0.6893,3749.5,3749.4,0.53326]
[1753562422632,1.1315,3749.5,3749.0,0.5993]
[1753562422833,0.6893,3749.1,3749.0,1.13262]
[1753562423034,1.7322,3749.1,3749.0,1.13262]
[1753562423432,1.7322,3749.1,3749.0,1.32812]
[1753562423635,1.7322,3749.1,3749.0,1.53482]
[1753562423831,1.7322,3749.1,3749.0,1.98902]
[1753562425038,1.7322,3749.1,3749.0,2.28222]
[1753562426538,1.7322,3749.1,3749.0,1.53482]
[1753562427335,1.7322,3749.1,3748.5,4.45109]
[1753562427336,1.7546,3748.6,3748.5,4.45109]
[1753562427741,1.7546,3748.6,3748.5,1.24329]
[1753562428040,1.7546,3748.6,3748.5,2.30999]
[1753562428843,1.7546,3748.6,3748.5,1.83839]
[1753562429237,1.7546,3748.6,3748.5,2.30999]
[1753562432334,0.4643,3748.8,3748.7,0.53336]
[1753562432535,1.2549,3748.8,3748.7,2.30996]
[1753562432739,1.4504,3748.8,3748.7,2.30996]
[1753562432940,1.7546,3748.8,3748.7,2.30996]
[1753562436747,1.75960687,3748.8,3748.7,2.30996]
[1753562445652,1.75960687,3748.8,3748.7,0.53336]
[1753562446753,1.75960687,3748.8,3748.7,1.12846]
[1753562446953,1.75960687,3748.8,3748.7,1.99626]
[1753562448152,1.75960687,3748.8,3748.7,2.30996]
[1753562448659,2.29295687,3748.8,3748.7,2.30996]
[1753562452362,1.75960687,3748.8,3748.7,2.30996]
[1753562452657,2.29295687,3748.8,3748.7,2.30996]
[1753562455662,2.29295687,3748.8,3748.7,1.7766]
[1753562457365,2.29295687,3748.8,3748.7,2.30996]
[1753562457570,1.75960687,3748.8,3748.7,2.30996]
[1753562458964,2.29295687,3748.8,3748.7,2.30996]
[1753562460065,0.4996,3748.4,3748.3,0.9794]
[1753562460270,1.2442,3748.4,3748.3,1.21362]
[1753562460470,0.9429,3748.4,3748.3,1.21362]
[1753562460665,0.9429,3748.4,3748.3,2.27252]
[1753562461472,2.27251,3748.4,3748.3,1.0056]
[1753562461864,2.27251,3748.4,3748.3,2.27252]
[1753562462373,1.7391,3748.4,3748.3,2.27252]
[1753562463574,2.27251,3748.4,3748.3,1.7391]
[1753562463973,2.27251,3748.4,3748.3,2.27252]
[1753562464275,1.7391,3748.4,3748.3,2.27252]
[1753562464575,2.27251,3748.4,3748.3,2.27252]
[1753562464770,2.27251,3748.4,3748.3,1.7391]
[1753562465771,2.27251,3748.4,3748.3,0.6097]
[1753562467176,2.27251,3748.4,3748.3,0.8028]
[1753562467475,2.27251,3748.4,3748.3,0.3105]
[1753562467675,2.27251,3748.4,3748.3,0.6097]
[1753562467875,2.27251,3748.4,3748.3,0.8028]
[1753562468080,2.27251,3748.4,3748.3,1.4548]
[1753562468271,2.27251,3748.4,3748.3,1.98822]
[1753562468471,2.27251,3748.4,3748.3,2.27252]
[1753562468773,1.7391,3748.4,3748.3,2.27252]
[1753562468968,1.1386,3748.4,3748.3,2.27252]
[1753562469173,0.736,3748.4,3748.3,2.27252]
[1753562469877,1.4399,3748.4,3748.3,2.27252]
[1753562475479,1.7391,3748.4,3748.3,2.27252]
[1753562483183,1.4399,3748.4,3748.3,2.27252]
[1753562485585,1.7391,3748.4,3748.3,2.27252]
[1753562509205,1.4399,3748.4,3748.3,2.27252]
[1753562510807,1.0175,3748.7,3748.6,1.02608]
[1753562511103,2.04116947,3748.7,3748.6,2.28668]
[1753562511303,2.04116947,3748.7,3748.6,1.7533]
[1753562511505,2.46766947,3748.7,3748.6,1.7533]
[1753562511703,3.00102947,3748.7,3748.6,1.7533]
[1753562512703,3.00102947,3748.7,3748.6,2.28668]
[1753562514307,2.46766947,3748.7,3748.6,2.28668]
[1753562514708,2.46766947,3748.7,3748.6,2.28177314]
[1753562516409,23.65766947,3748.7,3748.6,2.28177314]
[1753562518006,5.67546947,3748.7,3748.6,2.28177314]
[1753562518510,26.86546947,3748.7,3748.6,2.28177314]
[1753562519710,23.65766947,3748.7,3748.6,2.28177314]
[1753562520008,27.39882947,3748.7,3748.6,2.28177314]
[1753562520209,26.86546947,3748.7,3748.6,2.28177314]
[1753562520513,26.1414,3748.7,3748.6,2.28177314]
[1753562520812,26.86532624,3748.7,3748.6,2.28177314]
[1753562521006,27.39868624,3748.7,3748.6,2.28177314]
[1753562521310,27.39768624,3748.7,3748.6,2.28177314]
[1753562521712,26.86432624,3748.7,3748.6,2.28177314]
[1753562522815,26.1404,3748.7,3748.6,2.28177314]
[1753562523014,26.67376,3748.7,3748.6,2.28177314]
[1753562523314,27.39766922,3748.7,3748.6,2.28177314]
[1753562523711,26.67376,3748.7,3748.6,2.28177314]
[1753562524115,5.48476,3748.7,3748.6,2.28177314]
[1753562524414,26.67276,3748.7,3748.6,2.28177314]
[1753562524814,27.39667816,3748.7,3748.6,2.28177314]
[1753562525117,27.39668221,3748.7,3748.6,2.28177314]
[1753562525514,26.86332221,3748.7,3748.6,2.28177314]
[1753562525715,26.1394,3748.7,3748.6,2.28177314]
[1753562527413,4.9514,3748.7,3748.6,2.28177314]
[1753562527604,26.1384,3748.7,3748.6,2.28177314]
[1753562528720,22.9306,3748.7,3748.6,2.28177314]
[1753562531125,1.7436,3748.7,3748.6,2.28177314]
[1753562531319,22.9296,3748.7,3748.6,2.28177314]
[1753562532123,1.7436,3748.7,3748.6,2.28177314]
[1753562532324,23.65254488,3748.7,3748.6,2.28177314]
[1753562537430,24.18590488,3748.7,3748.6,2.28177314]
[1753562537623,23.65254488,3748.7,3748.6,2.28177314]
[1753562539331,1.43808503,3749.5,3748.9,0.4085]
[1753562539332,0.4509,3749.1,3748.9,0.4085]
[1753562539526,22.02313223,3749.0,3748.9,2.24883]
[1753562539927,21.299,3749.0,3748.9,2.24883]
[1753562540529,23.77488207,3749.0,3748.6,1.55437]
[1753562540821,1.25816,3748.7,3748.4,0.9736]
[1753562541021,1.25819,3748.5,3748.4,0.207]
[1753562541232,0.7248,3748.3,3748.2,1.7155]
[1753562541427,22.9341,3748.3,3748.2,1.7155]
[1753562541632,23.46752,3748.3,3748.2,1.7155]
[1753562542331,23.46752,3748.3,3748.2,2.24893]
[1753562542632,22.9341,3748.3,3748.2,2.24893]
[1753562542832,23.46752,3748.3,3748.2,2.24893]
[1753562543332,23.46752,3748.3,3748.2,1.7155]
[1753562543534,23.46752,3748.3,3748.2,2.24893]
[1753562543731,23.46752,3748.3,3748.2,1.7155]
[1753562544431,23.46752,3748.3,3748.2,2.24893]
[1753562544933,23.46752,3748.3,3748.2,1.7155]
[1753562545133,23.46752,3748.3,3748.2,2.24893]
[1753562546737,23.46752,3748.3,3748.2,1.7155]
[1753562547130,23.46752,3748.3,3748.2,1.2753]
[1753562547431,23.46752,3748.3,3747.9,0.285]
[1753562547432,1.7317,3748.1,3747.9,0.285]
[1753562547632,26.65496,3748.0,3747.9,0.285]
[1753562547833,26.65396,3748.0,3747.9,0.285]
[1753562548831,26.65396,3748.0,3747.9,0.5906]
[1753562550235,26.65396,3748.0,3747.9,0.7912]
[1753562550438,26.65396,3748.0,3747.9,1.4435]
[1753562551435,3.2078,3748.0,3747.9,2.27908]
[1753562551636,1.2446,3748.5,3748.4,1.2382]
[1753562551832,22.84722492,3748.5,3748.4,2.279]
[1753562553237,22.84822492,3748.5,3748.4,2.279]
[1753562555143,1.66622492,3748.5,3748.4,2.279]
[1753562555346,22.1243,3748.5,3748.4,2.279]
[1753562558746,22.4256,3748.5,3748.4,2.279]
[1753562559145,1.2446,3748.5,3748.4,2.279]
[1753562559346,22.4236,3748.5,3748.4,2.279]
[1753562562539,22.6144,3748.5,3748.4,2.279]
[1753562563147,1.4354,3748.5,3748.4,2.279]
[1753562563344,22.6134,3748.5,3748.4,2.279]
[1753562564145,22.9097,3748.5,3748.4,2.279]
[1753562565147,1.7317,3748.5,3748.4,2.279]
[1753562565347,22.9097,3748.5,3748.4,2.279]
[1753562565851,3.2078,3748.8,3747.9,3.2078]
[1753562565852,4.1511,3748.8,3748.7,2.27896]
[1753562566146,25.10891302,3748.8,3748.7,2.27896]
[1753562566648,3.93191302,3748.8,3748.7,2.27896]
[1753562566847,0.116,3749.3,3748.7,10.48676]
[1753562567050,21.177,3749.4,3749.3,2.27888]
[1753562567348,21.90114762,3749.4,3749.3,2.27888]
[1753562568348,0.72414762,3749.4,3749.3,2.27888]
[1753562571452,21.176,3749.6,3749.5,2.27885]
[1753562571648,21.8994893,3749.6,3749.5,2.27885]
[1753562571845,21.176,3749.6,3749.5,2.27885]
[1753562572443,0.4553,3749.6,3749.5,2.27885]
[1753562575852,21.174,3749.7,3749.6,0.73383]
[1753562576050,21.174,3749.7,3749.6,1.23803]
[1753562576253,21.9159,3749.7,3749.6,2.27883]
[1753562576548,22.1173,3749.7,3749.6,2.27883]
[1753562577051,22.4184,3749.7,3749.6,2.27883]
[1753562577253,22.6092,3749.7,3749.6,2.27883]
[1753562578255,1.4352,3749.7,3749.6,2.27883]
[1753562578450,1.1331,3749.9,3749.8,2.25561]
[1753562578650,0.2,3749.9,3749.8,2.25561]
[1753562580857,0.6422,3749.9,3749.8,2.25561]
[1753562582858,1.2523,3750.3,3750.2,2.25555]
[1753562583061,0.9511,3750.3,3750.2,2.25555]
[1753562583253,0.018,3750.3,3750.2,2.25555]
[1753562584362,4.6454,3750.8,3750.7,2.25548]
[1753562584557,4.9389,3750.8,3750.7,2.25548]
[1753562588158,4.6454,3750.8,3750.7,2.25548]
[1753562588462,25.5092,3750.8,3750.7,2.25548]
[1753562588657,25.8104,3750.8,3750.7,2.25548]
[1753562589764,26.1039,3750.8,3750.7,2.25548]
[1753562590163,4.9389,3750.8,3750.7,2.25548]
[1753562591955,4.9389,3750.8,3750.7,0.53308]
[1753562592356,5.47196,3750.8,3750.7,0.53308]
[1753562592561,0.53309,3750.7,3750.6,0.53308]
[1753562592759,0.5331,3750.6,3750.5,0.53309]
[1753562593064,2.2642,3750.6,3750.5,0.53309]
[1753562593263,1.7311,3750.6,3750.5,0.53309]
[1753562593566,1.7311,3750.6,3750.5,1.96809]